fUSD/lending_fUSD_20251103
["ID","MTS","AMOUNT","RATE_DAILY","PERIOD"]
[392959601,1762180240555,-421.0,0.0001989,2]
[392959602,1762180240564,-731.0,0.0001989,2]
[392959603,1762180240574,-1000.0,0.000199,2]
[392959604,1762180240585,-619.433582,0.00019909,2]
[392959605,1762180240594,-710.0,0.00019921,2]
[392959606,1762180240603,-710.0,0.00019992,2]
[392959607,1762180240612,-256.30119241,0.00019999,2]
[392959608,1762180240621,-151.0,0.0002,2]
[392959609,1762180240630,-25685.25848978,0.0002,5]
[392959610,1762180240639,-1000.0,0.0002,7]
[392959611,1762180240648,-710.0,0.00020008,2]
[392959612,1762180240657,-710.0,0.00020016,2]
[392959613,1762180240666,-421.0,0.00020027,2]
[392959614,1762180240676,-731.0,0.00020027,2]
[392959615,1762180240686,-710.0,0.00020115,2]
[392959616,1762180240695,-421.0,0.00020164,2]
[392959617,1762180240704,-731.0,0.00020164,2]
[392959618,1762180240713,-1000.0,0.00020187,2]
[392959619,1762180240722,-710.0,0.00020232,2]
[392959620,1762180240731,-446.1979887,0.00020245,2]
[392959621,1762180240740,-1576.33620328,0.00020296,2]
[392959622,1762180240749,-421.0,0.00020301,2]
[392959623,1762180240759,-731.0,0.00020301,2]
[392959624,1762180240768,-783.48315436,0.00020323,2]
[392959625,1762180240778,-1152.0,0.00020327,2]
[392959626,1762180240790,-710.0,0.00020354,2]
[392959627,1762180240799,-710.0,0.00020356,2]
[392959628,1762180240808,-710.0,0.00020396,2]
[392959629,1762180240817,-421.0,0.00020438,2]
[392959630,1762180240828,-731.0,0.00020438,2]
[392959631,1762180240838,-500.0,0.00020451,2]
[392959632,1762180240847,-150.0,0.00020452,2]
[392959633,1762180240856,-710.0,0.00020469,2]
[392959634,1762180240868,-710.0,0.00020477,2]
[392959635,1762180240878,-573.0,0.00020508,2]
[392959636,1762180240887,-421.0,0.00020575,2]
[392959637,1762180240897,-731.0,0.00020575,2]
[392959638,1762180240906,-7137.61552583,0.00020623,2]
[392959639,1762180240915,-710.0,0.00020626,2]
[392959640,1762180240925,-202.2,0.00020653,2]
[392959641,1762180240934,-4609.0,0.00020669,2]
[392959642,1762180240943,-421.0,0.00020712,2]
[392959643,1762180240953,-731.0,0.00020712,2]
[392959644,1762180240963,-421.0,0.00020849,2]
[392959645,1762180240973,-731.0,0.00020849,2]
[392959646,1762180240982,-300.0,0.0002095,2]
[392959647,1762180240992,-7466.74,0.00020951,2]
[392959648,1762180241001,-3691.58,0.00020951,2]
[392959649,1762180241010,-1310.43,0.00020951,2]
[392959650,1762180241020,-9999.99,0.00020951,2]
[392959651,1762180241029,-9999.99,0.00020951,2]
[392959652,1762180241039,-436.0,0.00020986,2]
[392959653,1762180241049,-734.38593079,0.00020986,2]
[392959654,1762180241058,-228.93926421,0.00021,2]
[392959655,1762180241067,-252.45281151,0.00021112,2]
[392959656,1762180241077,-1600.0,0.00021298,2]
[392959657,1762180241087,-202.2,0.00021447,2]
[392959658,1762180241097,-2000.0,0.000216,2]
[392959659,1762180241106,-150.0,0.00021627,2]
[392959660,1762180241115,-198.62,0.0002172,2]
[392959661,1762180241124,-500.0,0.00021918,4]
[392959662,1762180241134,-500.0,0.00021918,4]
[392959663,1762180241143,-500.0,0.00021918,4]
[392959664,1762180241153,-500.0,0.00021918,4]
[392959665,1762180241162,-500.0,0.00021918,4]
[392959666,1762180241172,-500.0,0.00021918,4]
[392959667,1762180241182,-500.0,0.00021918,4]
[392959668,1762180241191,-500.0,0.00021918,4]
[392959669,1762180241200,-500.0,0.00021918,4]
[392959670,1762180241210,-500.0,0.00021918,4]
[392959671,1762180241219,-500.0,0.00021918,4]
[392959672,1762180241228,-500.0,0.00021918,4]
[392959673,1762180241237,-500.0,0.00021918,4]
[392959674,1762180241247,-500.0,0.00021918,4]
[392959675,1762180241256,-500.0,0.00021918,4]
[392959676,1762180241266,-500.0,0.00021918,4]
[392959677,1762180241275,-150.0,0.00021918,2]
[392959678,1762180241284,-500.0,0.00021918,2]
[392959679,1762180241294,-150.0,0.00021918,2]
[392959680,1762180241304,-153.68323784,0.0002192,4]
[392959681,1762180241313,-153.68323784,0.0002192,4]
[392959682,1762180241322,-153.68323784,0.0002192,4]
[392959683,1762180241333,-153.68323784,0.0002192,4]
[392959684,1762180241342,-153.68323784,0.0002192,4]
[392959685,1762180241351,-153.68323784,0.0002192,4]
[392959686,1762180241362,-153.68323784,0.0002192,4]
[392959687,1762180241371,-153.68323784,0.0002192,4]
[392959688,1762180241381,-153.68323784,0.0002192,4]
[392959689,1762180241390,-153.68323784,0.0002192,4]
[392959690,1762180241399,-153.68323784,0.0002192,4]
[392959691,1762180241409,-153.68323784,0.0002192,4]
[392959692,1762180241418,-153.68323784,0.0002192,4]
[392959693,1762180241427,-153.68323784,0.0002192,4]
[392959694,1762180241437,-153.68323784,0.0002192,4]
[392959695,1762180241447,-153.68323784,0.0002192,4]
[392959696,1762180241456,-153.68323784,0.0002192,4]
[392959697,1762180241465,-153.68323784,0.0002192,4]
[392959698,1762180241475,-153.68,0.0002192,4]
[392959699,1762180241484,-340.66451054,0.0002192,4]
[392959700,1762180241494,-340.66451054,0.0002192,4]
[392959701,1762180241504,-340.66451054,0.0002192,4]
[392959702,1762180241516,-340.66451054,0.0002192,4]
[392959703,1762180241525,-340.66451054,0.0002192,4]
[392959704,1762180241534,-340.66451054,0.0002192,4]
[392959705,1762180241543,-340.66451054,0.0002192,4]
[392959706,1762180241553,-340.66451054,0.0002192,4]
[392959707,1762180241562,-340.66451054,0.0002192,4]
[392959708,1762180241572,-340.66451054,0.0002192,4]
[392959709,1762180241584,-340.66451054,0.0002192,4]
[392959710,1762180241593,-340.66451054,0.0002192,4]
[392959711,1762180241603,-340.66451054,0.0002192,4]
[392959712,1762180241612,-340.66451054,0.0002192,4]
[392959713,1762180241621,-340.66451054,0.0002192,4]
[392959714,1762180241630,-340.66451054,0.0002192,4]
[392959715,1762180241639,-340.66451054,0.0002192,4]
[392959716,1762180241649,-340.66451054,0.0002192,4]
[392959717,1762180241658,-340.66451054,0.0002192,4]
[392959718,1762180241667,-340.66,0.0002192,4]
[392959719,1762180241676,-238.99551242,0.0002192,4]
[392959720,1762180241686,-238.99551242,0.0002192,4]
[392959721,1762180241695,-238.99551242,0.0002192,4]
[392959722,1762180241704,-238.99551242,0.0002192,4]
[392959723,1762180241714,-238.99551242,0.0002192,4]
[392959724,1762180241723,-238.99551242,0.0002192,4]
[392959725,1762180241733,-238.99551242,0.0002192,4]
[392959726,1762180241743,-238.99551242,0.0002192,4]
[392959727,1762180241752,-238.99551242,0.0002192,4]
[392959728,1762180241761,-238.99551242,0.0002192,4]
[392959729,1762180241771,-238.99551242,0.0002192,4]
[392959730,1762180241780,-238.99551242,0.0002192,4]
[392959731,1762180241793,-238.99551242,0.0002192,4]
[392959732,1762180241802,-238.99551242,0.0002192,4]
[392959733,1762180241811,-238.99551242,0.0002192,4]
[392959734,1762180241820,-238.99551242,0.0002192,4]
[392959735,1762180241832,-238.99551242,0.0002192,4]
[392959736,1762180241841,-238.99551242,0.0002192,4]
[392959737,1762180241851,-238.99551242,0.0002192,4]
[392959738,1762180241860,-238.99,0.0002192,4]
[392959739,1762180241872,-557.65619565,0.0002192,4]
[392959740,1762180241881,-557.65619565,0.0002192,4]
[392959741,1762180241890,-557.65619565,0.0002192,4]
[392959742,1762180241899,-557.65619565,0.0002192,4]
[392959743,1762180241909,-557.65619565,0.0002192,4]
[392959744,1762180241919,-557.65619565,0.0002192,4]
[392959745,1762180241929,-557.65619565,0.0002192,4]
[392959746,1762180241938,-557.65619565,0.0002192,4]
[392959747,1762180241948,-557.65619565,0.0002192,4]
[392959748,1762180241957,-557.65619565,0.0002192,4]
[392959749,1762180241966,-557.65619565,0.0002192,4]
[392959750,1762180241975,-557.65619565,0.0002192,4]
[392959751,1762180241984,-557.65619565,0.0002192,4]
[392959752,1762180241994,-557.65619565,0.0002192,4]
[392959753,1762180242004,-557.65619565,0.0002192,4]
[392959754,1762180242013,-557.65619565,0.0002192,4]
[392959755,1762180242022,-557.65619565,0.0002192,4]
[392959756,1762180242032,-557.65619565,0.0002192,4]
[392959757,1762180242041,-557.65619565,0.0002192,4]
[392959758,1762180242050,-557.65,0.0002192,4]
[392959759,1762180242059,-8619.03,0.00022,7]
[392959760,1762180242069,-435.66714502,0.00022055,2]
[392959761,1762180242078,-1000.0,0.00022112,2]
[392959762,1762180242087,-351.33673282,0.00022175,2]
[392959763,1762180242095,-500.0,0.00022248,2]
[392959764,1762180242105,-1613.0,0.00022267,2]
[392959765,1762180242115,-7137.61552583,0.00022275,2]
[392959766,1762180242124,-156.63746017,0.00022713,2]
[392959767,1762180242133,-6453.0,0.00022736,2]
[392959768,1762180242142,-300.0,0.00022828,2]
[392959769,1762180242151,-48752.6909707,0.00022829,2]
[392959770,1762180242161,-446.1979887,0.00022918,2]
[392959771,1762180242170,-167.0,0.00023,7]
[392959772,1762180242180,-737.44283374,0.00023154,2]
[392959773,1762180242189,-372.31603788,0.00023154,2]
[392959774,1762180242198,-500.0,0.00023618,2]
[392959775,1762180242208,-1654.0,0.0002373,2]
[392959776,1762180242217,-7137.61552583,0.00023926,2]
[392959777,1762180242227,-198.62,0.00024003,2]
[392959778,1762180242236,-167.0,0.00024164,7]
[392959779,1762180242245,-500.0,0.00024166,2]
[392959780,1762180242254,-1255.3687088,0.0002422,2]
[392959781,1762180242263,-12071.64,0.00024291,2]
[392959782,1762180242273,-1000.0,0.00024323,2]
[392959783,1762180242283,-1174.0,0.00024392,2]
[392959784,1762180242293,-8619.03,0.000244,7]
[392959785,1762180242302,-401.07176146,0.000244,7]
[392959786,1762180242312,-4111.91705096,0.000247,2]
[392959787,1762180242321,-315.45601705,0.00024799,10]
[392959788,1762180242331,-629637.599111,0.000248,3]
[392959789,1762180242341,-160.559873,0.000248,7]
[392959790,1762180242350,-151.0,0.000248,7]
[392959791,1762180242359,-151.0,0.000248,7]
[392959792,1762180242369,-151.0,0.000248,7]
[392959793,1762180242378,-151.0,0.000248,7]
[392959794,1762180242387,-151.0,0.000248,7]
[392959795,1762180242396,-151.0,0.000248,7]
[392959796,1762180242406,-151.0,0.000248,7]
[392959797,1762180242415,-151.0,0.000248,7]
[392959798,1762180242425,-151.0,0.000248,7]
[392959799,1762180242434,-151.0,0.000248,7]
[392959800,1762180242446,-151.0,0.000248,7]
[392959801,1762180242456,-151.0,0.000248,7]
[392959802,1762180242465,-151.0,0.000248,7]
[392959803,1762180242474,-151.0,0.000248,7]
[392959804,1762180242483,-241.514975,0.000248,7]
[392959805,1762180242492,-151.0,0.000248,7]
[392959806,1762180242501,-151.0,0.000248,7]
[392959807,1762180242510,-151.0,0.00024897,7]
[392959808,1762180242519,-477.5520043,0.000249,3]
[392959809,1762180242528,-221289.823132,0.000249,3]
[392959810,1762180242538,-151.0,0.00024988,7]
[392959811,1762180242547,-151.0,0.00024988,7]
[392959812,1762180242556,-190.904624,0.00024988,7]
[392959813,1762180242564,-151.0,0.00024988,7]
[392959814,1762180242574,-360.377788,0.00024988,7]
[392959816,1762180242584,-360.377788,0.00024988,7]
[392959817,1762180242593,-360.377788,0.00024988,7]
[392959819,1762180242602,-215.16726,0.00024988,7]
[392959820,1762180242611,-360.377788,0.00024988,7]
[392959822,1762180242620,-151.0,0.00024988,7]
[392959823,1762180242629,-215.16726,0.00024988,7]
[392959824,1762180242639,-215.16726,0.00024988,7]
[392959825,1762180242648,-215.16726,0.00024988,7]
[392959826,1762180242657,-151.0,0.00024988,7]
[392959827,1762180242666,-151.0,0.00024988,7]
[392959828,1762180242676,-151.0,0.00024988,7]
[392959829,1762180242685,-1005.62,0.00025,2]
[392959830,1762180242694,-9035.0,0.00025009,2]
[392959831,1762180242703,-587.2229139,0.00025056,2]
[392959832,1762180242712,-500.0,0.00025142,7]
[392959833,1762180242721,-500.0,0.00025294,7]
[392959834,1762180242730,-2000.0,0.000253,2]
[392959835,1762180242739,-500.0,0.00025362,7]
[392959836,1762180242748,-255.748,0.00025378,10]
[392959837,1762180242757,-5109.336,0.00025378,10]
[392959838,1762180242767,-500.0,0.00025394,7]
[392959839,1762180242776,-500.0,0.00025413,7]
[392959840,1762180242786,-179.53219072,0.00025433,30]
[392959841,1762180242798,-500.0,0.00025442,7]
[392959842,1762180242808,-600.0,0.00025467,7]
[392959843,1762180242817,-600.0,0.00025499,7]
[392959844,1762180242827,-477.5520043,0.000255,3]
[392959845,1762180242836,-1005.62,0.000255,2]
[392959846,1762180242846,-500.0,0.00025562,7]
[392959847,1762180242855,-7137.61552583,0.00025577,2]
[392959848,1762180242865,-499.4701768,0.0002558,7]
[392959849,1762180242876,-446.1979887,0.00025591,2]
[392959850,1762180242885,-206.305192,0.000256,2]
[392959851,1762180242894,-600.0,0.00025617,7]
[392959852,1762180242903,-1300.0,0.00025629,7]
[392959853,1762180242912,-500.0,0.00025664,7]
[392959854,1762180242921,-600.0,0.0002569,7]
[392959855,1762180242930,-8619.03,0.000257,7]
[392959856,1762180242939,-600.0,0.00025747,7]
[392959857,1762180242948,-600.0,0.00025765,7]
[392959858,1762180242958,-500.0,0.00025788,7]
[392959859,1762180242967,-1300.0,0.00025846,7]
[392959860,1762180242976,-600.0,0.00025877,7]
[392959861,1762180242985,-500.0,0.00025897,7]
[392959862,1762180242995,-1571.65517801,0.00026,10]
[392959863,1762180243004,-500.0,0.00026006,7]
[392959864,1762180243012,-1000.0,0.00026027,2]
[392959865,1762180243021,-500.0,0.00026058,7]
[392959866,1762180243031,-150.0,0.00026063,4]
[392959867,1762180243040,-150.0,0.00026063,4]
[392959868,1762180243049,-150.0,0.00026063,4]
[392959869,1762180243059,-150.15994699,0.00026063,4]
[392959870,1762180243068,-150.0,0.00026063,4]
[392959871,1762180243077,-150.0,0.00026063,4]
[392959872,1762180243087,-150.0,0.00026063,4]
[392959873,1762180243097,-150.0,0.00026063,4]
[392959874,1762180243107,-150.0,0.00026063,4]
[392959875,1762180243116,-150.0,0.00026063,4]
[392959876,1762180243125,-150.0,0.00026063,4]
[392959877,1762180243134,-150.0,0.00026063,4]
[392959878,1762180243143,-150.0,0.00026063,4]
[392959879,1762180243152,-150.0,0.00026063,4]
[392959880,1762180243161,-150.0,0.00026063,4]
[392959881,1762180243170,-163.89453344,0.00026063,4]
[392959882,1762180243179,-150.0,0.00026063,4]
[392959883,1762180243188,-150.0,0.00026063,4]
[392959884,1762180243197,-500.0,0.00026069,7]
[392959885,1762180243206,-500.0,0.00026101,7]
[392959886,1762180243215,-500.0,0.00026132,7]
[392959887,1762180243224,-150.0,0.00026137,4]
[392959888,1762180243234,-150.0,0.00026184,4]
[392959889,1762180243244,-150.0,0.00026189,4]
[392959890,1762180243253,-150.0,0.00026195,4]
[392959891,1762180243262,-500.0,0.00026201,7]
[392959892,1762180243272,-150.0,0.00026208,4]
[392959893,1762180243281,-150.0,0.00026212,4]
[392959894,1762180243290,-500.0,0.00026217,7]
[392959895,1762180243299,-150.0,0.00026233,4]
[392959896,1762180243308,-150.0,0.00026244,4]
[392959897,1762180243317,-1300.0,0.00026268,7]
[392959898,1762180243327,-150.0,0.00026286,4]
[392959899,1762180243337,-1000.0,0.00026301,2]
[392959900,1762180243346,-150.0,0.00026304,4]
[392959901,1762180243356,-150.0,0.00026315,4]
[392959902,1762180243366,-150.0,0.00026326,4]
[392959903,1762180243375,-150.0,0.00026326,4]
[392959904,1762180243384,-500.0,0.00026342,7]
[392959905,1762180243394,-150.0,0.00026353,4]
[392959906,1762180243403,-150.0,0.0002636,4]
[392959907,1762180243413,-150.0,0.00026404,4]
[392959908,1762180243422,-600.0,0.00026419,7]
[392959909,1762180243431,-393.40339811,0.0002642,7]
[392959910,1762180243440,-500.0,0.00026423,7]
[392959911,1762180243450,-150.0,0.00026425,4]
[392959912,1762180243459,-150.0,0.00026425,4]
[392959913,1762180243468,-264.82931598,0.00026432,2]
[392959914,1762180243477,-150.0,0.00026434,4]
[392959915,1762180243487,-150.0,0.00026441,4]
[392959916,1762180243496,-150.0,0.00026458,4]
[392959917,1762180243507,-150.0,0.00026477,4]
[392959918,1762180243516,-150.0,0.00026497,4]
[392959919,1762180243525,-600.0,0.00026503,7]
[392959920,1762180243535,-150.0,0.00026509,4]
[392959921,1762180243544,-1000.0,0.00026534,2]
[392959922,1762180243553,-150.0,0.00026546,4]
[392959923,1762180243562,-150.0,0.00026546,4]
[392959924,1762180243572,-600.0,0.00026559,7]
[392959925,1762180243582,-500.0,0.00026561,7]
[392959926,1762180243592,-150.0,0.00026567,4]
[392959927,1762180243602,-150.0,0.00026574,4]
[392959928,1762180243612,-1000.0,0.00026575,2]
[392959929,1762180243621,-150.0,0.00026583,4]
[392959930,1762180243630,-150.0,0.0002659,4]
[392959931,1762180243639,-150.0,0.0002659,4]
[392959932,1762180243648,-150.0,0.00026606,4]
[392959933,1762180243658,-1965.90828544,0.00026616,2]
[392959934,1762180243667,-268.63021333,0.00026618,2]
[392959935,1762180243823,-600.0,0.00026633,7]
[392959936,1762180243837,-150.0,0.00026642,4]
[392959937,1762180243846,-150.0,0.00026642,4]
[392959938,1762180243856,-150.0,0.00026657,4]
[392959939,1762180243866,-150.0,0.00026666,4]
[392959940,1762180243876,-1000.0,0.00026667,7]
[392959941,1762180243886,-1000.0,0.00026676,2]
[392959942,1762180243896,-150.0,0.00026693,4]
[392959943,1762180243905,-150.0,0.00026721,4]
[392959944,1762180243914,-150.0,0.00026731,4]
[392959945,1762180243924,-579.31160827,0.0002674,7]
[392959946,1762180243934,-150.0,0.00026744,4]
[392959947,1762180243943,-150.0,0.00026787,4]
[392959948,1762180243952,-150.0,0.00026787,4]
[392959949,1762180243963,-150.0,0.00026787,4]
[392959950,1762180243972,-150.0,0.00026787,4]
[392959951,1762180243983,-8619.03,0.000268,7]
[392959952,1762180243992,-150.0,0.00026806,4]
[392959953,1762180244002,-150.0,0.00026818,4]
[392959954,1762180244012,-500.0,0.00026831,7]
[392959955,1762180244022,-1000.0,0.00026849,2]
[392959956,1762180244031,-150.0,0.00026853,4]
[392959957,1762180244042,-150.0,0.00026853,4]
[392959958,1762180244052,-600.0,0.00026861,7]
[392959959,1762180244062,-150.0,0.0002688,4]
[392959960,1762180244071,-150.0,0.0002689,4]
[392959961,1762180244082,-150.0,0.00026908,4]
[392959962,1762180244091,-150.0,0.00026915,4]
[392959963,1762180244101,-500.0,0.00026919,7]
[392959964,1762180244110,-150.0,0.00026932,4]
[392959965,1762180244120,-500.0,0.00026938,7]
[392959966,1762180244129,-500.0,0.00026943,7]
[392959967,1762180244139,-150.0,0.00026944,4]
[392959968,1762180244148,-150.0,0.00026954,4]
[392959969,1762180244158,-150.0,0.00026968,4]
[392959970,1762180244167,-500.0,0.00026977,7]
[392959971,1762180244177,-150.0,0.00026984,4]
[392959972,1762180244186,-447.8349712,0.00026992,7]
[392959973,1762180244197,-477.5520043,0.00027,7]
[392959974,1762180244210,-150.0,0.00027028,4]
[392959975,1762180244223,-150.0,0.00027028,4]
[392959976,1762180244233,-150.0,0.00027028,4]
[392959977,1762180244242,-150.0,0.00027028,4]
[392959978,1762180244252,-150.0,0.0002707,4]
[392959979,1762180244261,-150.0,0.00027077,4]
[392959980,1762180244271,-150.0,0.00027085,4]
[392959981,1762180244280,-150.0,0.00027103,4]
[392959982,1762180244290,-500.0,0.00027114,7]
[392959983,1762180244299,-150.0,0.00027116,4]
[392959984,1762180244308,-150.0,0.00027116,4]
[392959985,1762180244317,-500.0,0.00027122,7]
[392959986,1762180244326,-1000.0,0.00027123,2]
[392959987,1762180244336,-150.0,0.00027149,4]
[392959988,1762180244345,-150.0,0.00027149,4]
[392959989,1762180244354,-1300.0,0.00027165,7]
[392959990,1762180244364,-150.0,0.00027177,4]
[392959991,1762180244374,-500.0,0.00027191,7]
[392959992,1762180244384,-150.0,0.00027196,4]
[392959993,1762180244393,-150.0,0.00027221,4]
[392959994,1762180244402,-150.0,0.00027221,4]
[392959995,1762180244412,-7137.61552583,0.00027229,2]
[392959996,1762180244421,-150.0,0.00027248,4]
[392959997,1762180244431,-150.0,0.00027251,4]
[392959998,1762180244440,-150.0,0.00027255,4]
[392959999,1762180244450,-1300.0,0.00027265,7]
[392960000,1762180244459,-150.0,0.0002727,4]
[392960001,1762180244469,-500.0,0.0002728,7]
[392960002,1762180244478,-150.0,0.00027304,4]
[392960003,1762180244488,-150.0,0.00027322,4]
[392960004,1762180244497,-150.0,0.00027325,4]
[392960005,1762180244506,-150.0,0.0002733,4]
[392960006,1762180244517,-150.0,0.00027366,4]
[392960007,1762180244527,-500.0,0.0002737,7]
[392960008,1762180244535,-1300.0,0.00027372,7]
[392960009,1762180244545,-150.0,0.00027379,4]
[392960010,1762180244554,-150.0,0.00027379,4]
[392960011,1762180244564,-150.0,0.0002739,4]
[392960012,1762180244573,-350.0,0.00027397,7]
[392960013,1762180244584,-181.3,0.00027397,10]
[392960014,1762180244593,-1000.0,0.00027397,2]
[392960015,1762180244603,-150.0,0.000274,7]
[392960016,1762180244612,-500.0,0.00027406,7]
[392960017,1762180244621,-150.0,0.00027426,7]
[392960018,1762180244631,-150.0,0.00027448,7]
[392960019,1762180244640,-500.0,0.00027457,5]
[392960020,1762180244650,-150.0,0.00027474,7]
[392960021,1762180244659,-600.0,0.00027487,7]
[392960022,1762180244669,-9855.0,0.0002751,2]
[392960023,1762180244678,-150.0,0.00027511,7]
[392960024,1762180244687,-150.0,0.00027511,7]
[392960025,1762180244696,-150.0,0.00027511,7]
[392960026,1762180244706,-150.0,0.00027511,7]
[392960027,1762180244715,-150.0,0.00027511,7]
[392960028,1762180244724,-150.0,0.00027511,7]
[392960029,1762180244733,-150.0,0.00027511,7]
[392960030,1762180244742,-10878.1957439,0.00027525,2]
[392960031,1762180244752,-150.0,0.00027548,7]
[392960032,1762180244761,-150.0,0.00027574,7]
[392960033,1762180244770,-150.0,0.00027596,7]
[392960034,1762180244779,-150.0,0.000276,2]
[392960035,1762180244790,-200.0,0.000276,2]
[392960036,1762180244801,-150.0,0.00027622,7]
[392960037,1762180244810,-150.0,0.00027632,7]
[392960038,1762180244819,-150.0,0.00027643,7]
[392960039,1762180244839,-150.0,0.00027643,7]
[392960040,1762180244850,-150.0,0.00027656,7]
[392960041,1762180244859,-500.0,0.00027669,7]
[392960042,1762180244871,-245.21,0.00027671,7]
[392960043,1762180244882,-1000.0,0.00027671,2]
[392960044,1762180244892,-1154.53,0.00027671,30]
[392960045,1762180244902,-440.46876719,0.00027688,5]
[392960046,1762180244912,-500.0,0.00027688,5]
[392960047,1762180244922,-150.0,0.00027692,7]
[392960048,1762180244932,-150.0,0.00027697,7]
[392960049,1762180244942,-150.0,0.000277,7]
[392960050,1762180244951,-150.0,0.00027718,7]
[392960051,1762180244961,-150.0,0.00027752,7]
[392960052,1762180244971,-150.0,0.00027766,7]
[392960053,1762180244982,-150.0,0.00027771,7]
[392960054,1762180244991,-150.0,0.00027774,7]
[392960055,1762180245001,-150.0,0.00027801,7]
[392960056,1762180245011,-150.0,0.00027801,7]
[392960057,1762180245021,-500.0,0.0002782,7]
[392960058,1762180245031,-2000.0,0.0002782,2]
[392960059,1762180245041,-1300.0,0.00027821,7]
[392960060,1762180245051,-500.0,0.00027823,7]
[392960061,1762180245060,-150.0,0.00027826,7]
[392960062,1762180245069,-600.0,0.00027828,7]
[392960063,1762180245080,-500.0,0.00027843,7]
[392960064,1762180245091,-150.0,0.00027845,7]
[392960065,1762180245100,-600.0,0.00027864,7]
[392960066,1762180245111,-150.0,0.00027873,7]
[392960067,1762180245121,-150.0,0.00027873,7]
[392960068,1762180245141,-150.0,0.00027906,7]
[392960069,1762180245151,-150.0,0.00027906,7]
[392960070,1762180245161,-150.0,0.00027919,7]
[392960071,1762180245171,-150.0,0.00027937,7]
[392960072,1762180245181,-245.21,0.00027945,8]
[392960073,1762180245191,-1000.0,0.00027945,2]
[392960074,1762180245201,-150.0,0.00027945,7]
[392960075,1762180245211,-150.0,0.00027952,7]
[392960076,1762180245220,-500.0,0.00027969,7]
[392960077,1762180245230,-150.0,0.00027994,7]
[392960078,1762180245240,-150.0,0.00027994,7]
[392960079,1762180245249,-150.0,0.00027994,7]
[392960080,1762180245258,-150.0,0.00027994,7]
[392960081,1762180245268,-284.64471158,0.00028,60]
[392960082,1762180245278,-1000.0,0.00028005,5]
[392960083,1762180245287,-473.70707509,0.00028016,7]
[392960084,1762180245297,-200.0,0.0002802,2]
[392960085,1762180245307,-150.0,0.00028037,7]
[392960086,1762180245316,-210.92218601,0.00028041,7]
[392960087,1762180245330,-150.0,0.00028054,7]
[392960088,1762180245340,-500.0,0.00028058,7]
[392960089,1762180245350,-150.0,0.00028068,7]
[392960090,1762180245360,-150.0,0.00028078,7]
[392960091,1762180245369,-150.0,0.0002809,7]
[392960092,1762180245379,-150.0,0.00028107,7]
[392960093,1762180245389,-500.0,0.00028114,7]
[392960094,1762180245399,-150.0,0.00028114,7]
[392960095,1762180245408,-150.0,0.00028132,7]
[392960096,1762180245418,-150.0,0.00028142,7]
[392960097,1762180245428,-500.0,0.00028155,7]
[392960098,1762180245438,-150.0,0.00028169,7]
[392960099,1762180245447,-150.0,0.00028169,7]
[392960100,1762180245457,-150.0,0.00028203,7]
[392960101,1762180245467,-500.0,0.00028213,7]
[392960102,1762180245476,-150.0,0.00028216,7]
[392960103,1762180245485,-245.21,0.00028219,9]